lending/lending_fUSD_20251125
["ID","MTS","AMOUNT","RATE_DAILY","PERIOD"]
[394891225,1764079845940,-500.0,0.00038356,8]
[394891226,1764079845949,-503.00369665,0.00038356,8]
[394891227,1764079845958,-504.27008835,0.00038356,8]
[394891228,1764079845967,-500.0,0.00038356,8]
[394891229,1764079845976,-500.0,0.00038356,8]
[394891230,1764079845986,-554.57029378,0.00038356,8]
[394891231,1764079845995,-500.0,0.00038356,8]
[394891232,1764079846010,-500.0,0.00038356,8]
[394891233,1764079846020,-500.0,0.00038356,8]
[394891234,1764079846030,-500.0,0.00038356,8]
[394891235,1764079846039,-500.0,0.00038356,8]
[394891236,1764079846049,-500.0,0.00038356,8]
[394891237,1764079846059,-516.08632553,0.00038356,8]
[394891238,1764079846068,-1146.17,0.00038356,8]
[394891239,1764079846077,-500.0,0.00038356,8]
[394891240,1764079846086,-500.0,0.00038356,8]
[394891241,1764079846095,-500.0,0.00038356,8]
[394891242,1764079846104,-500.0,0.00038356,8]
[394891243,1764079846113,-538.8115546,0.00038356,8]
[394891244,1764079846122,-500.0,0.00038356,8]
[394891245,1764079846131,-543.9492777,0.00038356,8]
[394891246,1764079846140,-500.0,0.00038356,8]
[394891247,1764079846149,-500.0,0.00038356,8]
[394891248,1764079846159,-642.25,0.00038356,8]
[394891249,1764079846168,-500.0,0.00038356,8]
[394891250,1764079846177,-500.0,0.00038356,120]
[394891251,1764079846187,-500.0,0.00038356,8]
[394891252,1764079846196,-195.43499826,0.00038356,8]
[394891253,1764079846206,-500.0,0.00038356,8]
[394891254,1764079846215,-503.75301639,0.00038356,8]
[394891255,1764079846227,-500.0,0.00038356,8]
[394891256,1764079846236,-500.0,0.00038356,8]
[394891257,1764079846246,-500.0,0.00038356,8]
[394891258,1764079846255,-600.59,0.00038356,8]
[394891259,1764079846264,-500.0,0.00038356,8]
[394891260,1764079846274,-487.06289142,0.00038356,8]
[394891261,1764079846283,-618.3196484,0.00038356,8]
[394891262,1764079846293,-500.0,0.00038356,8]
[394891263,1764079846302,-1316.32,0.00038356,8]
[394891264,1764079846311,-500.0,0.00038356,8]
[394891265,1764079846322,-329.15592983,0.00038356,8]
[394891266,1764079846331,-511.36015816,0.00038356,8]
[394891267,1764079846341,-246.18177752,0.00038356,8]
[394891268,1764079846350,-262.75482188,0.00038356,8]
[394891269,1764079846363,-567.88,0.00038356,8]
[394891270,1764079846373,-513.03553229,0.00038356,8]
[394891271,1764079846383,-500.0,0.00038356,8]
[394891272,1764079846392,-500.0,0.00038356,8]
[394891273,1764079846403,-405.46826724,0.00038356,8]
[394891274,1764079846412,-517.98148315,0.00038356,8]
[394891275,1764079846422,-503.92880255,0.00038356,8]
[394891276,1764079846431,-428.06549619,0.00038356,8]
[394891277,1764079846443,-427.76830533,0.00038356,8]
[394891279,1764079846452,-500.0,0.00038356,8]
[394891280,1764079846462,-500.0,0.00038356,8]
[394891281,1764079846599,-500.0,0.00038356,8]
[394891282,1764079846610,-512.91,0.00038356,8]
[394891283,1764079846619,-503.27148583,0.00038356,8]
[394891284,1764079846627,-500.0,0.00038356,8]
[394891285,1764079846635,-500.0,0.00038356,2]
[394891286,1764079846644,-381.05864146,0.00038356,8]
[394891287,1764079846652,-500.0,0.00038356,8]
[394891288,1764079846661,-212.37426024,0.00038356,2]
[394891289,1764079846670,-151.6594303,0.00038356,5]
[394891290,1764079846678,-200.0,0.00038356,12]
[394891291,1764079846686,-1300.32637,0.0003849,30]
[394891292,1764079846695,-1000.0,0.0003863,2]
[394891293,1764079846704,-1000.0,0.0003863,2]
[394891294,1764079846713,-500.0,0.0003863,8]
[394891295,1764079846723,-2498.91,0.0003863,8]
[394891296,1764079846732,-273.05,0.0003863,8]
[394891297,1764079846740,-617.89,0.0003863,8]
[394891298,1764079846751,-500.0,0.0003863,8]
[394891299,1764079846760,-504.4087604,0.0003863,8]
[394891300,1764079846769,-500.0,0.0003863,8]
[394891301,1764079846778,-500.0,0.0003863,8]
[394891302,1764079846787,-500.0,0.0003863,8]
[394891303,1764079846796,-269.67,0.0003863,8]
[394891304,1764079846805,-603.35,0.0003863,8]
[394891305,1764079846813,-217.78,0.0003863,8]
[394891306,1764079846822,-827.12,0.0003863,8]
[394891307,1764079846831,-500.0,0.0003863,8]
[394891308,1764079846840,-642.93,0.0003863,8]
[394891309,1764079846849,-236.82,0.0003863,8]
[394891310,1764079846858,-315.2,0.0003863,8]
[394891311,1764079846867,-500.0,0.0003863,8]
[394891312,1764079846876,-500.0,0.0003863,8]
[394891313,1764079846886,-500.0,0.0003863,8]
[394891314,1764079846895,-229.52,0.0003863,8]
[394891315,1764079846904,-1146.17,0.0003863,8]
[394891316,1764079846912,-500.0,0.0003863,8]
[394891317,1764079846921,-500.0,0.0003863,8]
[394891318,1764079846930,-240.8444265,0.0003863,8]
[394891319,1764079846939,-153.94,0.0003863,8]
[394891320,1764079846948,-455.65,0.0003863,8]
[394891321,1764079846957,-596.5824692,0.0003863,8]
[394891322,1764079846966,-247.02,0.0003863,8]
[394891323,1764079846975,-500.09890002,0.0003863,8]
[394891324,1764079846984,-191.5,0.0003863,8]
[394891325,1764079846993,-1316.32,0.0003863,8]
[394891326,1764079847003,-259.22,0.0003863,8]
[394891327,1764079847012,-335.07,0.0003863,8]
[394891328,1764079847021,-500.0,0.0003863,2]
[394891329,1764079847030,-500.0,0.0003863,8]
[394891330,1764079847039,-500.0,0.000387,120]
[394891331,1764079847048,-500.0,0.000387,120]
[394891332,1764079847057,-500.0,0.000387,120]
[394891333,1764079847066,-500.0,0.000387,120]
[394891334,1764079847075,-694.021163,0.000388,14]
[394891335,1764079847084,-400.0,0.0003887,2]
[394891336,1764079847093,-1000.0,0.00038904,2]
[394891337,1764079847102,-1000.0,0.00038904,2]
[394891338,1764079847111,-500.0,0.00038904,8]
[394891339,1764079847120,-2498.91,0.00038904,8]
[394891340,1764079847129,-617.89,0.00038904,8]
[394891341,1764079847138,-500.0,0.00038904,8]
[394891342,1764079847147,-500.0,0.00038904,8]
[394891343,1764079847156,-500.0,0.00038904,8]
[394891344,1764079847165,-500.0,0.00038904,8]
[394891345,1764079847174,-827.12,0.00038904,8]
[394891346,1764079847184,-500.0,0.00038904,8]
[394891347,1764079847193,-593.41011698,0.00038904,8]
[394891348,1764079847203,-500.0,0.00038904,8]
[394891349,1764079847212,-500.0,0.00038904,8]
[394891350,1764079847221,-1146.17,0.00038904,8]
[394891351,1764079847231,-500.0,0.00038904,8]
[394891352,1764079847241,-500.0,0.00038904,8]
[394891353,1764079847250,-1316.32,0.00038904,8]
[394891354,1764079847259,-500.0,0.00038904,2]
[394891355,1764079847268,-3818.01,0.00038904,2]
[394891356,1764079847276,-1096.55753012,0.00038999,30]
[394891357,1764079847285,-50000.0,0.00039,39]
[394891358,1764079847294,-34108.84303501,0.00039,30]
[394891359,1764079847303,-51210.26419312,0.00039,3]
[394891360,1764079847491,-200.0,0.00015591,2]
[394891361,1764079847501,-500.0,0.00038904,8]
[394891362,1764079847510,-39503.86982134,0.00039,3]
[394891363,1764079847520,-1613.3279235,0.00039,3]
[394891364,1764079847531,-12506.45499511,0.00039,3]
[394891365,1764079847542,-480.0,0.00039,3]
[394891366,1764079854105,-3169.50055999,0.00039,3]
[394891367,1764079854118,-2282.74140267,0.00039,3]
[394891368,1764079854130,-185826.52730366,0.00039,3]
[394891369,1764079854143,-160.0,0.00039,120]
[394891370,1764079854153,-500.0,0.00039,2]
[394891371,1764079854163,-1301.92,0.00039,14]
[394891372,1764079854173,-1000.0,0.00039178,2]
[394891373,1764079854183,-1000.0,0.00039178,2]
[394891374,1764079854193,-500.0,0.00039178,8]
[394891375,1764079854203,-2498.91,0.00039178,8]
[394891376,1764079854213,-617.89,0.00039178,8]
[394891377,1764079854223,-500.0,0.00039178,8]
[394891378,1764079854233,-500.0,0.00039178,8]
[394891379,1764079854243,-500.0,0.00039178,8]
[394891380,1764079854252,-500.0,0.00039178,8]
[394891381,1764079854262,-827.12,0.00039178,8]
[394891382,1764079854271,-588.39120721,0.00039178,8]
[394891383,1764079854281,-500.0,0.00039178,8]
[394891384,1764079854290,-500.0,0.00039178,8]
[394891385,1764079854300,-1146.17,0.00039178,8]
[394891386,1764079854310,-500.0,0.00039178,8]
[394891387,1764079854319,-500.0,0.00039178,8]
[394891388,1764079854329,-1316.32,0.00039178,8]
[394891389,1764079854338,-500.0,0.00039178,2]
[394891390,1764079854347,-500.0,0.00039178,8]
[394891391,1764079854357,-311.69,0.000392,30]
[394891392,1764079854371,-455.20993483,0.00039452,2]
[394891393,1764079854380,-1000.0,0.00039452,2]
[394891394,1764079854389,-500.0,0.00039452,8]
[394891395,1764079854399,-2498.91,0.00039452,8]
[394891396,1764079854412,-617.89,0.00039452,8]
[394891397,1764079854422,-500.0,0.00039452,8]
[394891398,1764079854432,-500.0,0.00039452,8]
[394891399,1764079854442,-500.0,0.00039452,8]
[394891400,1764079854451,-500.0,0.00039452,8]
[394891401,1764079854460,-827.12,0.00039452,8]
[394891402,1764079854470,-500.0,0.00039452,8]
[394891403,1764079854479,-500.0,0.00039452,8]
[394891404,1764079854488,-1146.17,0.00039452,8]
[394891405,1764079854498,-500.0,0.00039452,8]
[394891406,1764079854506,-500.0,0.00039452,8]
[394891407,1764079854515,-1316.32,0.00039452,8]
[394891408,1764079854533,-500.0,0.00039452,2]
[394891409,1764079854544,-495.38330492,0.00039452,8]
[394891410,1764079854554,-1096.0,0.00039616,5]
[394891411,1764079854563,-320.35,0.00039654,2]
[394891412,1764079854573,-20000.0,0.000397,120]
[394891413,1764079854583,-291.08115454,0.00039726,8]
[394891414,1764079854592,-1636.85335804,0.00039726,8]
[394891415,1764079854605,-862.05664196,0.00039726,8]
[394891416,1764079854615,-617.89,0.00039726,8]
[394891417,1764079854624,-500.0,0.00039726,8]
[394891418,1764079854633,-500.0,0.00039726,8]
[394891419,1764079854642,-57.04007398,0.00039726,8]
[394891420,1764079854654,-118.73689082,0.00039726,8]
[394891421,1764079854665,-153.17168937,0.00039726,8]
[394891422,1764079854680,-346.82831063,0.00039726,8]
[394891423,1764079854689,-827.12,0.00039726,8]
[394891424,1764079854699,-500.0,0.00039726,8]
[394891425,1764079854708,-500.0,0.00039726,8]
[394891426,1764079854717,-1146.17,0.00039726,8]
[394891427,1764079854727,-500.0,0.00039726,8]
[394891428,1764079854736,-557.70428937,0.00039726,8]
[394891429,1764079854748,-16.89921063,0.00039726,8]
[394891430,1764079854758,-500.0,0.00039726,120]
[394891431,1764079854767,-1316.32,0.00039726,8]
[394891432,1764079854776,-497.5928,0.00039726,2]
[394891433,1764079854785,-155.78034396,0.0003997,2]
[394891434,1764079854797,-244.21965604,0.0003997,2]
[394891435,1764079854807,-1250.68034466,0.0004,40]
[394891436,1764079867507,300.0,0.00017379,119]
[394891437,1764079868228,2500.0,0.00020228,120]
[394891440,1764079932089,-300.0,0.00015699,2]
[394891441,1764079932120,-3585.955,0.000157,2]
[394891442,1764079932170,-2228.1,0.000157,2]
[394891443,1764079932363,-1000.0,0.000157,2]
[394891444,1764079932407,-8000.01,0.000157,2]
[394891445,1764079932791,-10000.01,0.000157,2]
[394891446,1764079935121,-10000.01,0.000157,2]
[394891447,1764079938103,-10000.01,0.000157,2]
[394891448,1764079938249,-10000.01,0.000157,2]
[394891449,1764079966570,240.26,0.00013699,2]
[394891522,1764080660367,-685.4129,0.000156,2]
[394891523,1764080660395,-160.13949654,0.000156,2]
[394891524,1764080660425,-250.0,0.00015636,2]
[394891525,1764080660453,-500.0,0.00015673,2]
[394891526,1764080660481,-500.0,0.00015673,2]
[394891527,1764080660620,-5568.64520692,0.000157,2]
[394891529,1764080666631,-10000.01,0.000157,2]
[394891531,1764080671672,150.0,0.00013825,2]
[394891578,1764081032230,-300.0,0.00015599,2]
[394891579,1764081032241,-602.04298034,0.000156,2]
[394891580,1764081032253,-509.33266233,0.000156,2]
[394891581,1764081032352,-2623.20065733,0.000156,2]
[394891582,1764081032362,-35734.5123,0.000156,2]
[394891583,1764081032372,-808.9651196,0.000157,2]
[394891584,1764081032413,-191.0348804,0.000157,2]
[394891585,1764081032426,-210.98942924,0.00016,4]
[394891586,1764081032476,-1601.14,0.00016,4]
[394891596,1764081038324,-447.66174487,0.00016,4]
[394891597,1764081038368,-15484.44103336,0.00016,4]
[394891598,1764081038383,-1601.27274359,0.0001635,2]
[394891599,1764081038393,-500.0,0.0001645,2]
[394891600,1764081038402,-500.0,0.0001645,2]
[394891601,1764081038412,-9652.59362463,0.0001688,2]
[394891602,1764081038424,-1000.0,0.00016998,2]
[394891603,1764081038435,-420.0,0.00017062,2]
[394891604,1764081038445,-1000.0,0.00017069,2]
[394891605,1764081038455,-2500.0,0.00017069,2]
[394891606,1764081038465,-175.0,0.00017155,2]
[394891607,1764081038476,-256.21,0.00017169,2]
[394891608,1764081038486,-9999.99,0.00017169,2]
[394891609,1764081038497,-1114.06,0.00017169,2]
[394891610,1764081038507,-150.99,0.00017169,2]
[394891611,1764081038518,-999.99,0.00017169,2]
[394891612,1764081038528,-175.0,0.00017177,2]
[394891613,1764081038538,-500.0,0.000172,2]
[394891614,1764081038548,-175.0,0.00017205,2]
[394891615,1764081038558,-175.0,0.00017211,2]
[394891616,1764081038568,-9999.99,0.00017211,2]
[394891617,1764081038578,-1549.01623601,0.00017211,2]
[394891618,1764081038591,-3454.88376399,0.00017211,2]
[394891619,1764081038602,-175.0,0.00017251,2]
[394891620,1764081038612,-157.71488302,0.0001727,2]
[394891621,1764081038622,-175.0,0.00017279,2]
[394891622,1764081038631,-175.0,0.00017344,2]
[394891623,1764081038641,-175.0,0.00017397,2]
[394891624,1764081038651,-175.0,0.00017412,2]
[394891625,1764081038660,-175.0,0.00017421,2]
[394891626,1764081038670,-175.0,0.0001749,2]
[394891627,1764081038681,-175.0,0.00017651,2]
[394891628,1764081038691,-184.79730938,0.00017748,2]
[394891629,1764081038701,-175.0,0.00017774,2]
[394891630,1764081038715,-175.0,0.00017809,2]
[394891631,1764081038725,-175.0,0.00017895,2]
[394891632,1764081038734,-177.65160887,0.00017998,2]
[394891633,1764081038745,-502.06483912,0.00017998,2]
[394891635,1764081038756,-500.0,0.00017998,2]
[394891637,1764081038766,-500.0,0.00017998,2]
[394891639,1764081038776,-491.25668134,0.00017998,2]
[394891641,1764081038786,-500.0,0.00017998,2]
[394891643,1764081038797,-500.0,0.00017998,2]
[394891645,1764081038807,-500.0,0.00017998,2]
[394891647,1764081038816,-500.0,0.00017998,2]
[394891649,1764081038826,-236.88170031,0.00017998,2]
[394891651,1764081038836,-500.0,0.00017998,2]
[394891653,1764081038846,-500.0,0.00017998,2]
[394891655,1764081038855,-500.0,0.00017998,2]
[394891658,1764081038865,-500.0,0.00017998,2]
[394891659,1764081038875,-500.0,0.00017998,2]
[394891661,1764081038884,-500.0,0.00017998,2]
[394891663,1764081038894,-500.0,0.00017998,2]
[394891665,1764081038904,-500.0,0.00017998,2]
[394891667,1764081038914,-500.0,0.00017998,2]
[394891668,1764081038928,-500.0,0.00017998,2]
[394891669,1764081038938,-500.0,0.00017998,2]
[394891670,1764081038948,-500.0,0.00017998,2]
[394891671,1764081038958,-500.0,0.00017998,2]
[394891672,1764081038967,-500.0,0.00017998,2]
[394891673,1764081038977,-500.0,0.00017998,2]
[394891674,1764081038986,-500.0,0.00017998,2]
[394891675,1764081038995,-500.0,0.00017998,2]
[394891676,1764081039005,-500.0,0.00017998,2]
[394891677,1764081039015,-500.0,0.00017998,2]
[394891678,1764081039025,-500.0,0.00017998,2]
[394891679,1764081039034,-500.0,0.00017998,2]
[394891680,1764081039043,-500.0,0.00017998,2]
[394891681,1764081039053,-500.0,0.00017998,2]
[394891682,1764081039062,-500.0,0.00017998,2]
[394891683,1764081039072,-182.14340413,0.00017998,2]
[394891684,1764081039081,-500.0,0.00017998,2]
[394891685,1764081039091,-500.0,0.00017998,2]
[394891686,1764081039101,-500.0,0.00017998,2]
[394891687,1764081039110,-500.0,0.00017998,2]
[394891688,1764081039120,-500.0,0.00017998,2]
[394891689,1764081039130,-500.0,0.00017998,2]
[394891690,1764081039140,-500.0,0.00017998,2]
[394891691,1764081039149,-500.0,0.00017998,2]
[394891692,1764081039159,-500.0,0.00017998,2]
[394891693,1764081039169,-500.0,0.00017998,2]
[394891694,1764081039181,-500.0,0.00017998,2]
[394891695,1764081039191,-25995.17961982,0.00018,2]
[394891696,1764081039203,-2416.06200004,0.00018,2]
[394891697,1764081039218,-302.64238328,0.00018,2]
[394891698,1764081040479,-905.07744046,0.00018,2]
[394891699,1764081040546,-11346.48179112,0.00018,2]
[394891700,1764081040558,-14282.48147199,0.00018,2]
[394891709,1764081046709,-1205.49840003,0.00018,2]
[394891711,1764081046955,-930.0,0.00018,2]
[394891716,1764081161816,750.0,0.000215,120]
[394891754,1764081866214,162.11,0.00012463,2]
[394891755,1764081866391,162.11,0.00013709,2]
[394891783,1764082231451,-252.611657,0.0001488,2]
[394891785,1764082231462,-162.11,0.00014955,2]
[394891787,1764082231472,-1200.0,0.00015499,2]
[394891789,1764082231482,-9736.08062284,0.000155,2]
[394891790,1764082231566,-3337.50000025,0.000155,2]
[394891791,1764082231627,-1484.33437691,0.000155,2]
[394891792,1764082231637,-300.0,0.00015599,2]
[394891793,1764082231647,-162.11,0.00016201,2]
[394891794,1764082231656,-162.11,0.00017448,2]
[394891795,1764082231666,-2217.49562309,0.000179,2]
[394891796,1764082231678,-282.50437691,0.000179,2]
[394891797,1764082231687,-583.52562309,0.00017999,2]
[394891806,1764082237619,-434.108675,0.00017999,2]
[394891807,1764082237632,-1584.30682991,0.00017999,2]
[394891808,1764082237642,-10678.6417249,0.00017999,2]
[394891809,1764082237651,-71607.12589961,0.00018,2]
[394891810,1764082237661,-175.0,0.00018072,2]
[394891811,1764082237670,-175.0,0.0001819,2]
[394891812,1764082237679,-175.0,0.00018191,2]
[394891813,1764082237688,-175.0,0.0001831,2]
[394891814,1764082237698,-175.0,0.00018395,2]
[394891815,1764082237708,-175.0,0.000184,2]
[394891816,1764082237717,-175.0,0.00018503,2]
[394891817,1764082237726,-175.0,0.00018531,2]
[394891818,1764082237735,-162.11,0.00018694,2]
[394891819,1764082237744,-175.0,0.00018754,2]
[394891820,1764082237753,-175.0,0.00018759,2]
[394891821,1764082237762,-717.8155456,0.00019,2]
[394891822,1764082237774,-304.46929328,0.00019,2]
[394891831,1764082239487,-8693.685,0.00019,2]
[394891832,1764082239682,-278.58662124,0.00019,2]
[394891833,1764082239698,-1734.21916915,0.00019,2]
[394891834,1764082239719,-885.87046762,0.00019,2]
[394891835,1764082239729,-498.27394872,0.00019,2]
[394891836,1764082239742,-167.4617584,0.00019,2]
[394891837,1764082239753,-154.22388022,0.00019,2]
[394891838,1764082239764,-162.11,0.0001994,2]
[394891839,1764082239774,-240.26,0.00020187,2]
[394891840,1764082239784,-2382.7270382,0.0002028,2]
[394891841,1764082239793,-500.0,0.0002065,2]
[394891842,1764082239803,-500.0,0.0002065,2]
[394891843,1764082239813,-366.67180907,0.0002065,2]
[394891844,1764082239822,-500.0,0.0002065,2]
[394891845,1764082239832,-531.6582656,0.00020789,2]
[394891846,1764082239841,-150.0,0.0002114,2]
[394891847,1764082239851,-150.0,0.0002114,2]
[394891848,1764082239863,-272.84784847,0.0002114,2]
[394891870,1764082244870,-227.15215153,0.0002114,2]
[394891871,1764082244881,-162.11,0.00021187,2]
[394891872,1764082244891,-81.12644847,0.00021277,2]
[394891873,1764082244903,-95.63001384,0.00021277,2]
[394891874,1764082244913,-150.0,0.00021277,2]
[394891875,1764082244926,-500.0,0.00021277,2]
[394891876,1764082244937,-150.0,0.00021277,2]
[394891877,1764082244947,-150.0,0.00021277,2]
[394891878,1764082244957,-293.69938487,0.00021277,2]
[394891879,1764082244967,-276.75564382,0.00021277,2]
[394891880,1764082244977,-152.19317623,0.00021277,2]
[394891881,1764082244987,-150.0,0.00021277,2]
[394891882,1764082244997,-150.0,0.00021277,2]
[394891883,1764082245008,-150.0,0.00021277,2]
[394891884,1764082245017,-150.0,0.00021277,2]
[394891885,1764082245028,-150.0,0.00021277,2]
[394891886,1764082245037,-150.0,0.00021414,2]
[394891887,1764082245047,-454.59268036,0.00021414,2]
[394891888,1764082245057,-250.0,0.00021414,2]
[394891889,1764082245067,-150.0,0.00021414,2]
[394891890,1764082245081,-250.0,0.00021551,2]
[394891891,1764082245091,-150.0,0.00021551,2]
[394891892,1764082245100,-150.0,0.00021551,2]
[394891893,1764082245110,-150.0,0.00021551,2]
[394891894,1764082245123,-267.236001,0.00021551,2]
[394891895,1764082245137,-150.0,0.00021551,2]
[394891896,1764082245146,-150.0,0.00021551,2]
[394891897,1764082245159,-150.0,0.00021551,2]
[394891898,1764082245168,-150.0,0.00021551,2]
[394891899,1764082245178,-150.0,0.00021688,2]
[394891900,1764082245189,-150.0,0.00021688,2]
[394891901,1764082245198,-150.0,0.00021688,2]
[394891902,1764082245208,-250.0,0.00021825,2]
[394891903,1764082245218,-150.0,0.00021825,2]
[394891904,1764082245227,-157.74281316,0.000221,2]
[394891905,1764082245237,-271.0,0.00022101,2]
[394891907,1764082245247,-238.63734571,0.0002211,2]
[394891908,1764082245257,-339.0,0.00022287,2]
[394891909,1764082245267,-162.11,0.00022433,2]
[394891910,1764082245277,-600.0,0.00022595,5]
[394891911,1764082245287,-600.0,0.00022869,5]
[394891912,1764082245297,-600.0,0.00023142,5]
[394891913,1764082245307,-600.0,0.00023416,5]
[394891914,1764082245317,-162.11,0.00023679,2]
[394891915,1764082245332,-600.0,0.0002369,5]
[394891916,1764082245342,-166.66,0.00023962,30]
[394891917,1764082245351,-600.0,0.00023964,5]
[394891918,1764082245361,-10000.0,0.00024,7]
[394891919,1764082245371,-600.0,0.00024238,5]
[394891920,1764082245381,-195.69,0.00024427,2]
[394891921,1764082245391,-166.66,0.00024466,30]
[394891922,1764082245401,-600.0,0.00024512,5]
[394891923,1764082245412,-430.87,0.00024609,2]
[394891924,1764082245422,-153.0,0.00024658,2]
[394891925,1764082245432,-153.0,0.00024658,2]
[394891926,1764082245441,-1000.0,0.00024667,2]
[394891927,1764082245451,-600.0,0.00024786,5]
[394891928,1764082245460,-162.11,0.00024925,2]
[394891929,1764082245471,-166.66,0.00024971,30]
[394891930,1764082245480,-5000.0,0.00024977,2]
[394891931,1764082245490,-10000.0,0.00025,7]
[394891932,1764082245504,-600.0,0.0002506,5]
[394891933,1764082245517,-200.0,0.00025317,2]
[394891934,1764082245527,-600.0,0.00025334,5]
[394891935,1764082245537,-166.66,0.00025475,30]
[394891936,1764082245546,-600.0,0.00025608,5]
[394891937,1764082245556,-950.32894101,0.00025721,3]
[394891938,1764082245569,-48.67105899,0.00025721,3]
[394891939,1764082245579,-250.0,0.0002588,2]
[394891940,1764082245589,-53.41334101,0.00025882,5]
[394891941,1764082245601,-546.58665899,0.00025882,5]
[394891942,1764082245612,-150.0,0.00025972,2]
[394891943,1764082245625,-166.66,0.0002598,30]
[394891944,1764082245635,-2224.60648096,0.0002599,3]
[394891945,1764082245645,-10000.0,0.00026,7]
[394891946,1764082245654,-600.0,0.00026156,5]
[394891947,1764082245664,-2224.60648096,0.0002616,3]
[394891948,1764082245674,-1819.202,0.0002617,12]
[394891949,1764082245684,-161.782,0.0002617,12]
[394891950,1764082245694,-1000.0,0.00026325,2]
[394891951,1764082245704,-166.66,0.00026484,30]
[394891952,1764082245713,-1000.0,0.00026668,2]
[394891953,1764082245723,-240.26,0.00026676,2]
[394891954,1764082245732,-4449.21296192,0.0002699,3]
[394891955,1764082245742,-10000.0,0.00027,7]
[394891956,1764082245751,-1000.0,0.000271,2]
[394891957,1764082245761,-516.77,0.00027159,2]
[394891958,1764082246014,-300.0,0.00027397,2]
[394891959,1764082246025,-1000.0,0.00027668,2]
[394891960,1764082246035,-2224.60648096,0.00028535,3]
[394891961,1764082246045,-1000.0,0.00028668,2]
[394891963,1764082246055,-500.0,0.000288,2]
[394891964,1764082246065,-500.0,0.000288,2]
[394891965,1764082246075,-500.0,0.000288,2]
[394891967,1764082246086,-500.0,0.000288,2]
[394891968,1764082246095,-500.0,0.000288,2]
[394891969,1764082246104,-500.0,0.000288,2]
[394891970,1764082246115,-495.1630242,0.000288,2]
[394891971,1764082246125,-500.0,0.000288,2]
[394891972,1764082246135,-500.0,0.000288,2]
[394891973,1764082246144,-500.0,0.000288,2]
[394891974,1764082246154,-500.0,0.000288,2]
[394891975,1764082246163,-500.0,0.000288,2]
[394891976,1764082246173,-500.0,0.000288,2]
[394891977,1764082246182,-157.68317125,0.000288,2]
[394891978,1764082246191,-8898.42592384,0.00028801,3]
[394891979,1764082246201,-224.06,0.00028811,14]
[394891980,1764082246215,-500.0,0.00028811,2]
[394891981,1764082246224,-500.0,0.00028811,2]
[394891983,1764082246234,-500.0,0.00028811,2]
[394891985,1764082246244,-500.0,0.00028811,2]
[394891986,1764082246253,-500.0,0.00028811,2]
[394891988,1764082246263,-250.0,0.00028811,2]
[394891989,1764082246272,-500.0,0.00028811,2]
[394891990,1764082246282,-500.0,0.00028811,2]
[394891991,1764082246291,-500.0,0.00028811,2]
[394891992,1764082246301,-250.0,0.00028811,2]
[394891993,1764082246311,-250.0,0.00028811,2]
[394891994,1764082246320,-500.0,0.00028811,2]
[394891995,1764082246330,-250.0,0.00028811,2]
[394891996,1764082246339,-500.0,0.00028811,2]